bitfinex-derivatives/quotes_BNBF0:USTF0_20250126
["timestamp","ask_amount","ask_price","bid_price","bid_amount"]
[1737933829403,0.89850686,666.53,665.41,0.27578735]
[1737933829602,0.89850686,666.52,665.42,0.27578735]
[1737933829807,0.89850686,666.52,665.43,0.27578735]
[1737933830009,0.89850686,666.52,665.44,0.27578735]
[1737933830206,0.89850686,666.51,665.45,0.27578735]
[1737933830410,0.89850686,666.51,665.46,0.27578735]
[1737933830713,0.89850686,666.51,665.47,0.27578735]
[1737933830915,0.3000255,666.61,665.47,0.27578735]
[1737933831215,0.3000255,666.61,665.48,0.27578735]
[1737933831515,0.88872595,666.6,665.49,0.27578735]
[1737933831715,0.88872595,666.59,665.5,0.27578735]
[1737933831915,0.88872595,666.59,665.51,0.27578735]
[1737933832311,0.88872595,666.58,665.52,0.27578735]
[1737933832517,0.88872595,666.58,665.22,0.994]
[1737933832518,0.88872595,666.58,665.53,0.27578735]
[1737933832717,0.88872595,666.58,665.54,0.27578735]
[1737933833017,0.88872595,666.57,665.55,0.27578735]
[1737933833217,0.88872595,666.57,665.56,0.27578735]
[1737933834117,0.3000255,666.61,665.56,0.27578735]
[1737933834313,0.88786813,666.6,665.56,0.27578735]
[1737933835120,0.88786813,666.59,665.57,0.27578735]
[1737933835319,0.88786813,666.59,665.58,0.27578735]
[1737933835513,0.88786813,666.58,665.59,0.27578735]
[1737933835714,0.88786813,666.58,665.6,0.27578735]
[1737933835919,0.3000255,666.61,665.61,0.27578735]
[1737933836116,0.3000255,666.61,665.62,0.27578735]
[1737933836423,0.3000255,666.61,665.63,0.27578735]
[1737933836720,0.3000255,666.61,665.64,0.27578735]
[1737933836922,0.3000255,666.61,665.65,0.27578735]
[1737933837224,0.3000255,666.61,665.66,0.27572447]
[1737933837525,0.3000255,666.61,665.67,0.27571756]
[1737933837717,0.3000255,666.61,665.68,0.27571756]
[1737933837916,0.3000255,666.61,665.69,0.27571756]
[1737933838116,0.3000255,666.61,665.7,0.27571756]
[1737933838422,0.3000255,666.61,665.65,0.873]
[1737933838423,0.88692444,666.6,665.71,0.27571756]
[1737933838622,0.3000345,666.59,665.72,0.27571756]
[1737933838822,0.88692444,666.58,665.73,0.27571756]
[1737933839015,0.88692444,666.58,665.74,0.27571756]
[1737933839216,0.88692444,666.58,665.75,0.27571756]
[1737933839419,0.88692444,666.58,665.76,0.27571756]
[1737933839621,0.3000345,666.59,665.77,0.27571756]
[1737933839816,0.3000345,666.59,665.78,0.27571756]
[1737933840015,0.3000345,666.59,665.79,0.27571756]
[1737933841019,0.3000345,666.59,665.8,0.27571756]
[1737933841222,0.3000345,666.59,665.81,0.27571756]
[1737933841417,0.3000345,666.59,665.82,0.27571756]
[1737933841623,0.3000345,666.59,665.83,0.27571756]
[1737933841923,0.3000345,666.59,665.65,0.873]
[1737933841924,0.3000345,666.59,665.84,0.27571756]
[1737933842225,0.88724283,666.58,665.85,0.27571756]
[1737933842424,0.88724283,666.58,665.86,0.27571756]
[1737933842724,0.88724283,666.58,665.87,0.27571756]
[1737933842926,0.88724283,666.58,665.88,0.27571756]
[1737933843224,0.3000345,666.59,665.89,0.27571756]
[1737933843225,0.88724283,666.57,665.89,0.27571756]
[1737933843427,0.88724283,666.56,665.65,0.873]
[1737933843619,0.88724283,666.56,665.66,0.27585174]
[1737933844225,0.88724283,666.55,665.66,0.27585174]
[1737933844424,0.3000345,666.59,665.66,0.27585174]
[1737933844626,0.3000345,666.59,665.67,0.27585174]
[1737933844824,0.3000345,666.59,665.65,0.873]
[1737933845023,0.3000345,666.59,665.66,0.27580974]
[1737933845427,0.3000345,666.59,665.67,0.27580974]
[1737933845624,0.3000345,666.59,665.68,0.27580974]
[1737933845927,0.88832717,666.58,665.69,0.27580974]
[1737933846127,0.88832717,666.58,665.66,0.27580974]
[1737933846328,0.88832717,666.57,665.67,0.27580974]
[1737933846525,0.88832717,666.57,665.65,0.873]
[1737933847225,0.88832717,666.58,665.65,0.873]
[1737933848026,0.3000345,666.59,665.66,0.27582128]
[1737933848231,0.3000345,666.59,665.67,0.27575465]
[1737933848430,0.3000345,666.59,665.68,0.27575465]
[1737933848629,0.3000345,666.59,665.69,0.27575465]
[1737933848836,0.3000345,666.59,665.7,0.27575465]
[1737933849024,0.3000345,666.59,665.71,0.27575465]
[1737933849229,0.3000345,666.59,665.72,0.27575465]
[1737933849430,0.3000345,666.59,665.73,0.27575465]
[1737933849627,0.3000345,666.59,665.74,0.27575465]
[1737933849832,0.88997961,666.58,665.75,0.27575465]
[1737933850135,0.88997961,666.58,665.76,0.27575465]
[1737933850335,0.88997961,666.57,665.68,0.27575465]
[1737933850536,0.88997961,666.57,665.69,0.27575465]
[1737933850730,0.300048,666.56,665.7,0.27575465]
[1737933850936,0.300048,666.56,665.71,0.27575465]
[1737933851135,0.300048,666.56,665.72,0.27575465]
[1737933851333,0.300048,666.56,665.73,0.275844]
[1737933851531,0.300048,666.56,665.74,0.275844]
[1737933851734,0.88997961,666.55,665.68,0.275844]
[1737933851935,0.88997961,666.54,665.69,0.275844]
[1737933852135,0.30006151,666.53,665.68,0.275844]
[1737933852336,1.19004112,666.53,665.68,0.275844]
[1737933852738,1.19004112,666.53,665.69,0.275844]
[1737933852936,1.19004112,666.53,665.7,0.275844]
[1737933853136,0.88997961,666.52,665.68,0.275844]
[1737933853332,0.30007051,666.51,665.68,0.275844]
[1737933853532,0.88997961,666.5,665.68,0.275844]
[1737933853737,0.88997961,666.5,665.68,1.161844]
[1737933853937,0.88997961,666.49,665.68,1.161844]
[1737933854239,0.88997961,666.49,665.71,0.275844]
[1737933854438,0.88997961,666.49,665.72,0.275844]
[1737933854637,0.88997961,666.49,665.73,0.275844]
[1737933854839,0.88997961,666.49,665.74,0.275844]
[1737933855038,0.88997961,666.49,665.68,0.886]
[1737933855039,0.88997961,666.48,665.69,0.275844]
[1737933855238,1.19006813,666.47,665.7,0.275844]
[1737933855437,1.19006813,666.47,665.69,0.275844]
[1737933855639,0.88997961,666.46,665.7,0.275844]
[1737933855835,0.88997961,666.46,665.71,0.275844]
[1737933856035,0.88997961,666.45,665.69,0.275844]
[1737933856240,0.88997961,666.45,665.7,0.275844]
[1737933856437,0.88997961,666.45,665.71,0.275844]
[1737933856635,0.88997961,666.45,665.72,0.275844]
[1737933856939,0.88997961,666.45,665.73,0.275844]
[1737933857241,0.88997961,666.46,665.74,0.275844]
[1737933857442,0.30009753,666.45,665.73,0.897]
[1737933857642,0.88997961,666.44,665.74,0.27587234]
[1737933858043,0.88997961,666.43,665.74,0.27587234]
[1737933858543,0.88997961,666.42,665.74,0.27587234]
[1737933858943,0.88997961,666.41,665.74,0.27587234]
[1737933859243,0.88997961,666.4,665.73,0.897]
[1737933859439,0.88997961,666.4,665.74,0.27587332]
[1737933860037,0.88997961,666.39,665.74,0.27587332]
[1737933860645,0.88997961,666.44,665.74,0.27587332]
[1737933861041,0.88997961,666.43,665.74,0.27587332]
[1737933861546,0.88997961,666.42,665.74,0.27587332]
[1737933861945,0.88997961,666.41,665.74,0.27587332]
[1737933863338,1.19009965,666.4,665.74,0.27587332]
[1737933863640,0.88997961,666.39,665.73,0.897]
[1737933864044,0.88997961,666.38,665.73,0.897]
[1737933864445,0.88997961,666.37,665.73,0.897]
[1737933865045,0.88997961,666.36,665.73,0.897]
[1737933865547,1.19012217,666.35,665.73,0.897]
[1737933866245,0.88997961,666.34,665.73,0.897]
[1737933866747,0.88997961,666.33,665.73,0.897]
[1737933867144,0.88997961,666.32,665.73,0.897]
[1737933867750,0.88997961,666.32,665.74,0.27589109]
[1737933868042,0.88997961,666.32,665.73,0.897]
[1737933868043,0.88997961,666.31,665.73,0.897]
[1737933868248,0.88997961,666.31,665.74,0.27588229]
[1737933868645,0.88997961,666.34,665.74,0.27588229]
[1737933869648,0.88997961,666.34,665.74,0.95488229]
[1737933869849,0.88997961,666.34,665.74,0.679]
[1737933870044,0.88997961,666.33,665.74,0.679]
[1737933870748,0.88997961,666.32,665.74,0.679]
[1737933870950,0.88997961,666.32,665.74,1.611]
[1737933871147,0.88997961,666.31,665.75,0.27585479]
[1737933871347,0.88997961,666.31,665.74,1.611]
[1737933871844,0.88997961,666.34,665.74,1.611]
[1737933872451,0.88997961,666.33,665.74,1.611]
[1737933872954,0.30014256,666.35,665.74,1.611]
[1737933873450,0.90028431,666.34,665.74,1.611]
[1737933874154,0.90028431,666.33,665.75,0.27583855]
[1737933875346,0.90028431,666.32,665.75,0.27583855]
[1737933875750,0.90028431,666.32,665.76,0.27580024]
[1737933876051,0.30014256,666.35,665.77,0.27580024]
[1737933876246,0.30014256,666.35,665.75,0.27580024]
[1737933876452,0.90221573,666.34,665.74,1.611]
[1737933876851,0.90221573,666.33,665.74,1.611]
[1737933877754,0.90221573,666.32,665.74,1.611]
[1737933878553,0.90221573,666.31,665.74,1.611]
[1737933879149,0.90221573,666.3,665.74,1.611]
[1737933879455,0.90221573,666.3,665.75,0.27585616]
[1737933880056,0.90221573,666.29,665.75,0.27585616]
[1737933880559,0.90221573,666.28,665.75,0.27585616]
[1737933880756,0.90221573,666.27,665.75,0.27585616]
[1737933881358,0.90221573,666.26,665.75,0.27585616]
[1737933881855,0.90221573,666.34,665.75,0.27585616]
[1737933882456,0.90221573,666.97,665.75,0.27585616]
[1737933882757,0.29987255,666.95,665.75,0.27585616]
[1737933882954,0.29987255,666.95,665.75,1.09285616]
[1737933883150,0.29987255,666.95,665.76,0.27585616]
[1737933883358,0.90221573,666.94,665.76,0.27585616]
[1737933883557,0.90221573,666.94,665.77,0.27575021]
[1737933883752,0.29988604,666.92,665.77,0.27575021]
[1737933883958,0.90221573,666.91,665.77,0.27575021]
[1737933884454,0.29989503,666.9,665.77,0.27575021]
[1737933884655,1.20211076,666.9,665.77,0.27575021]
[1737933885055,2.46941268,666.89,665.77,1.30775021]
[1737933885361,2.46941268,666.89,665.77,1.032]
[1737933885560,0.29990852,666.87,665.77,1.032]
[1737933885957,0.90221573,666.86,665.77,1.032]
[1737933886159,0.29992202,666.84,665.77,1.032]
[1737933886354,0.90221573,666.83,665.77,1.032]
[1737933886554,0.90221573,666.82,665.77,1.032]
[1737933886854,0.29993551,666.81,665.77,1.032]
[1737933887261,0.90221573,666.8,665.77,1.032]
[1737933887462,0.90221573,666.79,665.77,1.032]
[1737933887665,0.299949,666.78,665.77,1.032]
[1737933887957,0.90221573,666.77,665.77,1.032]
[1737933888157,0.299958,666.76,665.78,0.27577468]
[1737933888362,1.20217373,666.76,665.78,0.27577468]
[1737933888558,1.20217373,666.76,665.79,0.2757714]
[1737933888759,0.90221573,666.75,665.78,0.2757714]
[1737933888960,0.90221573,666.75,665.79,0.2757714]
[1737933889164,0.90221573,666.74,665.78,0.2757714]
[1737933889364,0.90221573,666.74,665.79,0.2757714]
[1737933889563,0.90221573,666.73,665.79,0.2757714]
[1737933889763,0.90221573,666.73,665.8,0.2757714]
[1737933889961,0.90221573,666.73,665.78,0.2757714]
[1737933890162,0.90221573,666.72,665.79,0.2757714]
[1737933890365,0.90221573,666.72,665.77,1.032]
[1737933890759,0.90221573,666.71,665.77,1.032]
[1737933891763,0.90221573,666.7,665.77,1.032]
[1737933892267,0.90221573,666.69,665.78,0.27567253]
[1737933892767,0.299958,666.76,665.78,0.27567253]
[1737933893368,0.90219159,666.75,665.78,0.27567253]
[1737933893568,0.90219159,666.74,665.78,0.27567253]
[1737933893964,0.299958,666.76,665.78,0.27567253]
[1737933894669,0.299958,666.76,665.79,0.27563835]
[1737933894868,0.299958,666.76,665.78,0.27563835]
[1737933895068,0.299958,666.76,665.79,0.27563835]
[1737933895270,0.299958,666.76,665.77,1.032]
[1737933895271,0.299958,666.76,665.78,0.27563835]
[1737933895467,0.299958,666.76,665.79,0.27563835]
[1737933895770,0.299958,666.76,665.8,0.27563835]
[1737933896071,0.299958,666.76,665.81,0.27563835]
[1737933896272,0.299958,666.76,665.82,0.27563835]
[1737933896570,0.299958,666.76,665.83,0.27567127]
[1737933896571,0.90131507,666.75,665.83,0.27567127]
[1737933896772,0.90131507,666.75,665.78,0.27567127]
[1737933896970,0.90131507,666.75,665.78,1.19867127]
[1737933897170,0.90131507,666.75,665.79,0.27567127]
[1737933897374,0.90131507,666.75,665.8,0.27567127]
[1737933897576,0.90131507,666.74,665.79,0.27567127]
[1737933897771,0.90131507,666.74,665.78,0.923]
[1737933897772,0.90131507,666.74,665.8,0.27567127]
[1737933898068,0.90131507,666.74,665.81,0.27567127]
[1737933898271,0.90131507,666.73,665.79,0.27567127]
[1737933898470,0.90131507,666.73,665.8,0.27567127]
[1737933898671,0.90131507,666.73,665.81,0.27567127]
[1737933898869,0.90131507,666.72,665.82,0.27567127]
[1737933899073,0.90131507,666.71,665.83,0.27567127]
[1737933899272,0.90131507,666.71,665.79,0.27567127]
[1737933899670,0.90131507,666.7,665.79,0.27567127]
[1737933900072,0.90131507,666.69,665.79,0.27567127]
[1737933900467,0.299958,666.76,665.79,0.27567127]
[1737933900671,0.299958,666.76,665.79,1.02567127]
[1737933900871,0.299958,666.76,665.8,0.27567127]
[1737933901274,0.299958,666.76,665.79,0.75]
[1737933901275,0.299958,666.76,665.81,0.27567127]
[1737933901574,0.299958,666.76,665.82,0.27567127]
[1737933901774,0.299958,666.76,665.83,0.27567127]
[1737933901971,1.07994357,667.76,665.84,0.27567127]
[1737933902368,1.07994357,667.76,665.85,0.27567127]
[1737933902574,1.07994357,667.6,665.86,0.27567127]
[1737933902773,1.07994357,667.6,665.87,0.27567127]
[1737933902982,1.07994357,667.6,665.88,0.27567127]
[1737933903171,0.29958956,667.58,665.89,0.27567127]
[1737933903376,0.29958956,667.58,665.9,0.27567127]
[1737933903575,0.29958956,667.58,665.91,0.27567127]
[1737933903769,0.90039033,667.57,665.92,0.27567127]
[1737933903973,0.90039033,667.57,665.93,0.27552136]
[1737933904175,0.90039033,667.57,665.94,0.27552136]
[1737933904374,0.90039033,667.56,665.95,0.27552136]
[1737933904573,0.90039033,667.56,665.96,0.27552136]
[1737933904773,0.90039033,667.56,665.97,0.27552136]
[1737933904974,0.90039033,667.55,665.98,0.27552136]
[1737933905175,0.90039033,667.55,665.99,0.27552136]
[1737933905478,0.90039033,667.55,666.0,0.27552136]
[1737933905776,0.90039033,667.55,666.01,0.27557498]
[1737933905976,0.90039033,667.54,666.02,0.27557498]
[1737933906278,0.90039033,667.53,666.03,0.27557498]
[1737933906577,0.90039033,667.52,666.03,0.27557498]
[1737933907169,0.90039033,667.51,666.03,1.05457498]
[1737933907775,0.90039033,667.51,666.04,0.27557498]
[1737933907976,0.90039033,667.5,666.05,0.27557498]
[1737933908177,0.90039033,667.5,666.06,0.27557498]
[1737933908377,0.90039033,667.5,666.07,0.27561506]
[1737933908572,0.90039033,667.5,666.04,0.27561506]
[1737933909079,0.90039033,667.49,666.04,0.27561506]
[1737933909278,0.90039033,667.49,666.05,0.27561506]
[1737933909574,0.90039033,667.48,666.06,0.27561506]
[1737933909775,0.90039033,667.47,666.04,0.27561506]
[1737933910078,0.90039033,667.47,666.05,0.27561506]
[1737933910274,0.90039033,667.46,666.04,0.27561506]
[1737933910478,0.90039033,667.45,666.05,0.27569998]
[1737933910678,0.90039033,667.45,666.06,0.27569998]
[1737933910873,0.90039033,667.44,666.07,0.27569998]
[1737933911080,0.90039033,667.44,666.08,0.27569998]
[1737933911279,0.90039033,667.44,666.03,0.779]
[1737933911471,0.90039033,667.44,666.04,0.27573201]
[1737933911780,0.90039033,667.43,666.05,0.27573201]
[1737933912074,0.90039033,667.43,666.03,0.779]
[1737933912379,0.90039033,667.42,666.04,0.2757053]
[1737933912679,0.90039033,667.41,666.04,0.2757053]
[1737933913273,0.90039033,667.4,666.04,0.2757053]
[1737933913872,0.90039033,667.39,666.04,0.2757053]
[1737933914778,0.89683154,667.38,666.05,0.27571999]
[1737933915073,0.89683154,667.38,666.04,0.27571999]
[1737933915380,0.89683154,667.37,666.05,0.27571999]
[1737933915573,0.89683154,667.37,666.03,0.779]
[1737933915778,0.89683154,667.37,666.04,0.27564912]
[1737933915973,0.89683154,667.36,666.04,0.27564912]
[1737933916573,0.89683154,667.35,666.04,0.27564912]
[1737933917078,0.89683154,667.34,666.04,0.27564912]
[1737933917674,0.89683154,667.33,666.04,0.27564912]
[1737933918179,0.89683154,667.32,666.04,0.27564912]
[1737933918382,0.89683154,667.32,666.03,0.779]
[1737933918775,0.89683154,667.31,666.03,0.779]
[1737933919084,0.89683154,667.3,666.03,0.779]
[1737933919381,0.29958956,667.58,666.03,0.779]
[1737933919578,0.89670716,667.29,666.03,0.779]
[1737933920679,0.89670716,667.28,666.03,0.779]
[1737933920882,0.89670716,667.27,666.03,1.725]
[1737933921382,0.89670716,667.26,666.03,1.725]
[1737933922385,0.89670716,667.25,666.03,1.725]
[1737933922785,0.89670716,667.24,666.03,1.725]
[1737933923279,0.89670716,667.23,666.03,1.725]
[1737933924087,0.89670716,667.22,666.03,1.725]
[1737933924386,0.89670716,667.21,666.03,1.725]
[1737933924787,0.89670716,667.2,666.03,1.725]
[1737933926186,0.89670716,667.19,666.03,2.755]
[1737933926386,0.29977367,667.17,666.03,2.755]
[1737933926587,0.89670716,667.16,666.03,2.755]
[1737933926984,0.29978715,667.14,666.03,2.755]
[1737933927388,0.89670716,667.13,666.03,2.755]
[1737933927587,0.29980063,667.11,666.03,2.755]
[1737933928089,0.89670716,667.1,666.03,2.755]
[1737933928489,0.89670716,667.09,666.03,2.755]
[1737933929288,0.89670716,667.08,666.03,2.755]
[1737933929789,0.89670716,667.07,666.03,2.755]
[1737933930495,0.89670716,667.06,666.03,2.755]
[1737933931089,0.89670716,667.05,666.03,2.755]
[1737933932285,0.89670716,667.04,666.03,2.755]
[1737933932787,0.89670716,667.03,666.03,2.755]
[1737933933194,0.89670716,667.02,666.03,2.755]
[1737933933786,0.89670716,667.01,666.03,2.755]
[1737933934390,0.89670716,667.0,666.03,2.755]
[1737933934590,0.89670716,666.99,666.03,2.755]
[1737933935289,0.89670716,666.98,666.03,2.755]
[1737933935696,0.89670716,666.97,666.03,2.755]
[1737933936193,0.89670716,666.96,666.03,2.755]
[1737933936393,0.89670716,666.95,666.03,2.755]
[1737933937398,0.89670716,666.94,666.03,2.755]
[1737933937792,0.89670716,666.93,666.03,2.755]
[1737933938200,0.89670716,666.92,666.03,2.755]
[1737933938701,0.89670716,666.91,666.03,2.755]
[1737933939398,0.29980063,667.11,666.03,2.755]
[1737933939399,0.89670716,666.9,666.03,2.755]
[1737933939905,0.89670716,666.89,666.03,2.755]
[1737933940403,0.89670716,666.88,666.03,2.755]
[1737933940804,0.89670716,666.87,666.03,2.755]
[1737933941206,1.19662018,666.86,666.03,2.755]
[1737933941905,0.89670716,666.85,666.03,2.755]
[1737933942411,0.89670716,666.84,666.03,2.755]
[1737933943406,0.89670716,666.83,666.03,2.755]
[1737933944210,0.89670716,666.82,666.03,2.755]
[1737933944712,0.89670716,666.81,666.03,2.755]
[1737933945103,0.89670716,666.8,666.03,2.755]
[1737933945507,1.19665167,666.79,666.03,2.755]
[1737933946305,0.89670716,666.78,666.03,2.755]
[1737933946709,0.89670716,666.77,666.03,2.755]
[1737933947512,1.19666516,666.76,666.03,2.755]
[1737933948014,0.89670716,666.75,666.03,2.755]
[1737933948407,0.299967,666.74,666.03,2.755]
[1737933949014,0.89670716,666.73,666.03,2.755]
[1737933949513,0.89670716,666.72,666.03,2.755]
[1737933950320,0.89670716,666.71,666.03,2.755]
[1737933950819,0.89670716,666.7,666.03,2.755]
[1737933951317,0.89670716,666.69,666.03,2.755]
[1737933952018,0.89670716,666.68,666.03,2.755]
[1737933952615,0.89670716,666.67,666.03,2.755]
[1737933952820,0.300003,666.66,666.03,2.755]
[1737933953014,0.89670716,666.65,666.03,2.755]
[1737933953514,0.89670716,666.64,666.03,2.755]
[1737933954118,0.89670716,666.63,666.03,2.755]
[1737933955015,0.89670716,666.62,666.03,2.755]
[1737933955418,0.89670716,666.61,666.03,2.755]
[1737933956122,0.300003,666.66,666.03,2.755]
[1737933956123,0.89670716,666.6,666.03,2.755]
[1737933956620,0.89670716,666.59,666.03,2.755]
[1737933957021,0.89670716,666.58,666.03,2.755]
[1737933957421,0.89670716,666.57,666.03,2.755]
[1737933957722,0.89670716,666.56,666.03,2.755]
[1737933958218,0.89670716,666.55,666.03,2.755]
[1737933958723,0.89670716,666.54,666.03,2.755]
[1737933959127,0.89670716,666.53,666.03,2.755]
[1737933959322,0.89670716,666.52,666.03,2.755]
[1737933960222,0.89670716,666.51,666.03,2.755]
[1737933960723,0.89670716,666.5,666.03,2.755]
[1737933961724,0.89670716,666.49,666.03,2.755]
[1737933962224,0.89670716,666.48,666.03,2.755]
[1737933962627,0.89670716,666.47,666.03,2.755]
[1737933963228,0.89670716,666.46,666.03,2.755]
[1737933963527,0.89670716,666.45,666.03,2.755]
[1737933963923,0.89670716,666.44,666.03,2.755]
[1737933964828,0.89670716,666.43,666.03,2.755]
[1737933965223,0.89670716,666.42,666.03,2.755]
[1737933966227,0.89670716,666.41,666.03,2.755]
[1737933967129,0.89670716,666.4,666.03,2.755]
[1737933967531,0.89670716,666.39,666.03,2.755]
[1737933968128,0.89670716,666.38,666.03,2.755]
[1737933968630,0.89670716,666.37,666.03,2.755]
[1737933969025,0.89670716,666.36,666.03,2.755]
[1737933969432,0.89670716,666.35,666.03,2.755]
[1737933970029,0.89670716,666.34,666.03,2.755]
[1737933970627,0.89670716,666.33,666.03,2.755]
[1737933971233,0.300003,666.66,666.03,2.755]
[1737933971433,0.90290408,666.65,666.03,2.755]
[1737933972427,0.90290408,666.64,666.04,0.275716]
[1737933972730,0.90290408,666.64,665.22,1.11809756]
[1737933973229,0.90290408,666.63,665.22,1.11809756]
[1737933973831,1.07994357,667.04,665.23,1.00593028]
[1737933974032,1.07994357,667.04,665.24,1.00593028]
[1737933974233,0.90351038,667.03,665.25,1.00593028]
[1737933974435,0.90351038,667.03,665.26,1.00593028]
[1737933974638,0.90351038,667.03,665.27,0.2757017]
[1737933974935,0.90351038,667.02,665.28,0.2757017]
[1737933975236,1.20335146,667.02,665.29,0.2757017]
[1737933975435,1.20335146,667.02,665.3,0.2757017]
[1737933975637,0.90351038,667.01,665.76,1.11809756]
[1737933975934,0.90351038,667.01,665.77,0.2757017]
[1737933976330,0.90351038,667.0,665.77,0.2757017]
[1737933977035,0.90351038,666.99,665.77,0.2757017]
[1737933977741,0.90351038,666.98,665.77,0.2757017]
[1737933978435,0.90351038,666.97,665.77,0.2757017]
[1737933978738,0.90351038,666.97,665.78,0.2757017]
[1737933979133,0.90351038,666.96,665.79,0.2757017]
[1737933979539,0.90351038,666.95,665.79,0.2757017]
[1737933979938,0.90351038,666.94,665.79,0.2757017]
[1737933980340,0.90351038,666.94,665.8,0.2757017]
[1737933980540,0.90351038,666.93,665.81,0.2757017]
[1737933980841,0.90351038,666.93,665.82,0.2757017]
[1737933981037,0.90351038,666.92,665.83,0.2757017]
[1737933981235,0.90351038,666.92,665.24,0.2757017]
[1737933981439,0.90351038,666.91,665.23,1.11809756]
[1737933981740,0.90351038,666.91,665.24,0.2757229]
[1737933981933,0.90351038,666.91,665.25,0.2757229]
[1737933982136,0.90351038,666.9,665.26,0.2757229]
[1737933982334,0.90351038,666.9,665.27,0.2757229]
[1737933982534,0.90351038,666.9,665.28,0.2757229]
[1737933982740,0.90351038,666.9,665.29,0.2757229]
[1737933983040,0.90351038,666.89,665.3,0.2757229]
[1737933983234,0.90351038,666.89,665.31,0.27576421]
[1737933983432,0.90351038,666.89,665.32,0.27576421]
[1737933983640,0.90351038,666.89,665.33,0.27576421]
[1737933983837,0.90351038,666.89,665.34,0.27576421]
[1737933984042,0.90351038,666.89,665.35,0.27576421]
[1737933984243,0.90351038,666.89,665.36,0.27576421]
[1737933984443,0.90351038,666.88,665.37,0.27576421]
[1737933984743,0.90351038,666.88,665.38,0.27576421]
[1737933984944,0.90351038,666.88,665.39,0.27576421]
[1737933985242,0.90351038,666.87,665.4,0.2756699]
[1737933985437,0.90351038,666.87,665.41,0.2756699]
[1737933985744,0.90351038,666.86,665.42,0.2756699]
[1737933986141,0.29988154,666.93,665.42,0.2756699]
[1737933987043,0.29988154,666.93,665.43,0.2756699]
[1737933987239,1.07994357,667.49,665.43,0.2756699]
[1737933987441,0.29963444,667.48,665.44,0.2756699]
[1737933987640,0.29963444,667.48,665.45,0.2756699]
[1737933987845,0.29963444,667.48,665.37,1.11809756]
[1737933988044,0.90143256,667.47,665.38,0.27552109]
[1737933988239,0.90143256,667.47,665.39,0.27552109]
[1737933988445,0.90143256,667.47,665.4,0.27552109]
[1737933988746,0.90143256,667.46,665.41,0.27552109]
[1737933989045,0.90143256,667.46,665.42,0.27552109]
[1737933989244,0.90143256,667.46,665.43,0.27552109]
[1737933989438,0.90143256,667.46,665.44,0.27552109]
[1737933989639,0.90143256,667.46,665.57,1.11809756]
[1737933989846,0.90143256,667.45,665.58,0.27552109]
[1737933990043,0.90143256,667.45,665.59,0.27552109]
[1737933990253,0.90143256,667.45,665.6,0.27552109]
[1737933990540,0.90143256,667.44,665.61,0.27552109]
[1737933990740,0.90143256,667.44,665.62,0.27552109]
[1737933990944,0.90143256,667.44,665.63,0.27552109]
[1737933991145,0.90143256,667.44,665.64,0.27552109]
[1737933991341,0.90143256,667.44,665.65,0.27552109]
[1737933991545,0.90143256,667.43,665.57,1.80109756]
[1737933991744,0.90143256,667.43,665.58,0.27549655]
[1737933992045,0.90143256,667.42,665.59,0.27549655]
[1737933992240,0.90143256,667.42,665.6,0.27549655]
[1737933992439,0.90143256,667.42,665.61,0.27549655]
[1737933992643,0.90143256,667.41,665.61,0.27549655]
[1737933993344,0.90143256,667.4,665.63,0.30046722]
[1737933993544,0.29967485,667.39,665.63,0.30046722]
[1737933993946,0.90143256,667.38,665.63,0.30046722]
[1737933994139,0.29968383,667.37,665.63,0.30046722]
[1737933994343,0.29968383,667.37,665.64,0.27549655]
[1737933994344,1.20111639,667.37,665.64,0.27549655]
[1737933994544,1.20111639,667.37,665.65,0.27549655]
[1737933994740,1.20111639,667.37,665.63,0.30046722]
[1737933995045,1.20111639,667.37,665.64,0.27552815]
[1737933995241,1.20111639,667.37,665.65,0.27552815]
[1737933995439,0.90143256,667.36,665.66,0.27552815]
[1737933995643,0.90143256,667.36,665.67,0.27552815]
[1737933995942,0.90143256,667.36,665.68,0.27552815]
[1737933996146,0.29968383,667.37,665.63,0.30046722]
[1737933996147,0.90143256,667.35,665.69,0.27552815]
[1737933996339,0.90143256,667.35,665.7,0.27552815]
[1737933996743,0.90143256,667.34,665.71,0.27552815]
[1737933997038,0.90143256,667.33,665.72,0.27552815]
[1737933997240,0.90143256,667.33,665.73,0.27552815]
[1737933997446,0.90143256,667.33,665.63,0.30046722]
[1737933997447,0.90143256,667.32,665.74,0.27552815]
[1737933997646,0.90143256,667.32,665.75,0.27552815]
[1737933997843,0.90143256,667.32,665.76,0.27552815]
[1737933998041,0.90143256,667.31,665.77,0.27552815]
[1737933998248,0.90143256,667.31,665.79,0.30039501]
[1737933998551,0.90143256,667.3,665.8,0.27549225]